[Event "Titled Tuesday Blitz March 21 Late 2023"]
[White "Zierk, Steven"]
[Black "Preotu, Razvan"]
[WhiteFideId "2034255"]
[BlackFideId "2613280"]
[WhiteElo "2494"]
[BlackElo "2407"]
[Result "1-0"]
[Round "03"]
[TimeControl "180+2"]
[Date "2023.03.21"]
[WhiteClock "0:00:08"]
[BlackClock "0:00:02"]

1. e4 {[%clk 0:02:55]}  c5 {[%clk 0:02:58]} 2. Nf3 {[%clk 0:02:54]}  d6 {[%clk 0:02:58]} 3. d4 {[%clk 0:02:54]}  cxd4 {[%clk 0:02:59]} 4. Nxd4 {[%clk 0:02:54]}  Nf6 {[%clk 0:03:00]} 5. Nc3 {[%clk 0:02:55]}  a6 {[%clk 0:03:00]} 6. h3 {[%clk 0:02:55]}  e5 {[%clk 0:03:00]} 7. Nde2 {[%clk 0:02:55]}  h5 {[%clk 0:03:00]} 8. Bg5 {[%clk 0:02:55]}  Be6 {[%clk 0:03:00]} 9. Bxf6 {[%clk 0:02:55]}  Qxf6 {[%clk 0:03:01]} 10. Nd5 {[%clk 0:02:55]}  Qd8 {[%clk 0:03:01]} 11. Nec3 {[%clk 0:02:56]}  g6 {[%clk 0:02:59]} 12. Qd3 {[%clk 0:02:52]}  Bh6 {[%clk 0:02:57]} 13. Be2 {[%clk 0:02:52]}  O-O {[%clk 0:02:56]} 14. O-O {[%clk 0:02:46]}  Nc6 {[%clk 0:02:56]} 15. Kh2 {[%clk 0:02:45]}  Nd4 {[%clk 0:02:54]} 16. f4 {[%clk 0:02:40]}  Rc8 {[%clk 0:02:40]} 17. f5 {[%clk 0:02:24]}  Bxd5 {[%clk 0:02:40]} 18. Nxd5 {[%clk 0:02:24]}  Rxc2 {[%clk 0:02:29]} 19. Bd1 {[%clk 0:02:23]}  Rd2 {[%clk 0:02:28]} 20. Qg3 {[%clk 0:02:19]}  Kh7 {[%clk 0:02:11]} 21. Bb3 {[%clk 0:02:03]}  gxf5 {[%clk 0:02:09]} 22. Qe1 {[%clk 0:01:16]}  Rg8 {[%clk 0:01:04]} 23. Rf2 {[%clk 0:01:14]}  Rd3 {[%clk 0:00:27]} 24. exf5 {[%clk 0:00:59]}  Qh4 {[%clk 0:00:25]} 25. Qf1 {[%clk 0:00:41]}  Rdg3 {[%clk 0:00:14]} 26. Rd1 {[%clk 0:00:32]}  Be3 {[%clk 0:00:08]} 27. Nxe3 {[%clk 0:00:25]}  Rxe3 {[%clk 0:00:09]} 28. Bxf7 {[%clk 0:00:24]}  Rgg3 {[%clk 0:00:04]} 29. f6 {[%clk 0:00:18]}  Qg5 {[%clk 0:00:02]} 30. Bd5 {[%clk 0:00:16]}  e4 {[%clk 0:00:01]} 31. f7 {[%clk 0:00:08]}  Qe5 {[%clk 0:00:02]} 32. Kh1 {[%clk 0:00:08]}  Qxd5 {[%clk 0:00:01]} 33. f8=Q {[%clk 0:00:08]}  Qg5 {[%clk 0:00:02]} 34. Rf7+ {[%clk 0:00:08]} 1-0


[Site "https://www.chess.com"]

[Event "Titled Tuesday Blitz March 21 Late 2023"]
[White "Svane, Frederik"]
[Black "Vlassov, Nikolai"]
[WhiteFideId "12923044"]
[BlackFideId "4103360"]
[WhiteElo "2502"]
[BlackElo "2324"]
[Result "1-0"]
[Round "03"]
[TimeControl "180+2"]
[Date "2023.03.21"]
[WhiteClock "0:00:20"]
[BlackClock "0:00:03"]

1. c4 {[%clk 0:03:00]}  e5 {[%clk 0:02:59]} 2. g3 {[%clk 0:02:59]}  h5 {[%clk 0:02:58]} 3. Nf3 {[%clk 0:02:45]}  e4 {[%clk 0:02:58]} 4. Nh4 {[%clk 0:02:45]}  Nf6 {[%clk 0:02:30]} 5. d3 {[%clk 0:02:43]}  Nc6 {[%clk 0:02:16]} 6. Bg2 {[%clk 0:02:37]}  Bb4+ {[%clk 0:02:05]} 7. Nc3 {[%clk 0:02:37]}  d5 {[%clk 0:01:59]} 8. O-O {[%clk 0:02:24]}  Bxc3 {[%clk 0:01:58]} 9. bxc3 {[%clk 0:02:24]}  dxc4 {[%clk 0:01:58]} 10. dxe4 {[%clk 0:02:23]}  Qxd1 {[%clk 0:01:55]} 11. Rxd1 {[%clk 0:02:24]}  Bg4 {[%clk 0:01:54]} 12. f3 {[%clk 0:02:05]}  Be6 {[%clk 0:01:53]} 13. Rb1 {[%clk 0:02:00]}  Rd8 {[%clk 0:01:41]} 14. Bf4 {[%clk 0:01:52]}  O-O {[%clk 0:01:09]} 15. Rxd8 {[%clk 0:01:46]}  Nxd8 {[%clk 0:01:07]} 16. Bxc7 {[%clk 0:01:46]}  g5 {[%clk 0:01:00]} 17. Rd1 {[%clk 0:01:21]}  Nc6 {[%clk 0:00:48]} 18. Nf5 {[%clk 0:01:21]}  g4 {[%clk 0:00:17]} 19. Bf4 {[%clk 0:01:12]}  Bxf5 {[%clk 0:00:15]} 20. exf5 {[%clk 0:01:12]}  Re8 {[%clk 0:00:16]} 21. Kf2 {[%clk 0:01:07]}  gxf3 {[%clk 0:00:15]} 22. exf3 {[%clk 0:01:06]}  Ne5 {[%clk 0:00:14]} 23. Bf1 {[%clk 0:01:03]}  b5 {[%clk 0:00:12]} 24. Rd6 {[%clk 0:00:55]}  Kg7 {[%clk 0:00:11]} 25. h3 {[%clk 0:00:49]}  a5 {[%clk 0:00:08]} 26. a3 {[%clk 0:00:43]}  b4 {[%clk 0:00:08]} 27. axb4 {[%clk 0:00:42]}  axb4 {[%clk 0:00:08]} 28. cxb4 {[%clk 0:00:42]}  c3 {[%clk 0:00:09]} 29. b5 {[%clk 0:00:22]}  c2 {[%clk 0:00:08]} 30. b6 {[%clk 0:00:22]}  Ned7 {[%clk 0:00:03]} 31. Rc6 {[%clk 0:00:20]} 1-0


[Site "https://www.chess.com"]

[Event "Titled Tuesday Blitz March 21 Late 2023"]
[White "Dardha, Daniel"]
[Black "Panesso Rivera, Henry"]
[WhiteFideId "240990"]
[BlackFideId "4402707"]
[WhiteElo "2581"]
[BlackElo "2345"]
[Result "1-0"]
[Round "03"]
[TimeControl "180+2"]
[Date "2023.03.21"]
[WhiteClock "0:00:07"]
[BlackClock "0:00:05"]

1. d4 {[%clk 0:03:00]}  Nf6 {[%clk 0:02:56]} 2. Bg5 {[%clk 0:03:00]}  c5 {[%clk 0:02:54]} 3. dxc5 {[%clk 0:03:00]}  Na6 {[%clk 0:02:51]} 4. Nc3 {[%clk 0:02:57]}  Nxc5 {[%clk 0:02:49]} 5. Bxf6 {[%clk 0:02:56]}  gxf6 {[%clk 0:02:49]} 6. e4 {[%clk 0:02:57]}  d6 {[%clk 0:02:48]} 7. Qd2 {[%clk 0:02:54]}  h5 {[%clk 0:02:47]} 8. O-O-O {[%clk 0:02:53]}  Qa5 {[%clk 0:02:45]} 9. Bc4 {[%clk 0:02:48]}  Bh6 {[%clk 0:02:43]} 10. f4 {[%clk 0:02:47]}  Be6 {[%clk 0:02:37]} 11. Bxe6 {[%clk 0:02:43]}  fxe6 {[%clk 0:02:34]} 12. Kb1 {[%clk 0:02:37]}  b5 {[%clk 0:02:23]} 13. Qe3 {[%clk 0:02:20]}  b4 {[%clk 0:02:02]} 14. Nce2 {[%clk 0:02:16]}  e5 {[%clk 0:02:01]} 15. Qf3 {[%clk 0:02:06]}  Bxf4 {[%clk 0:01:44]} 16. g3 {[%clk 0:02:06]}  Bh6 {[%clk 0:01:27]} 17. Qxh5+ {[%clk 0:02:06]}  Kd7 {[%clk 0:01:24]} 18. Qf5+ {[%clk 0:01:52]}  Kc7 {[%clk 0:01:21]} 19. Nh3 {[%clk 0:01:49]}  Rab8 {[%clk 0:01:17]} 20. Nf2 {[%clk 0:01:45]}  Rb6 {[%clk 0:01:07]} 21. Nd3 {[%clk 0:01:36]}  Ra6 {[%clk 0:00:44]} 22. Nec1 {[%clk 0:01:22]}  Be3 {[%clk 0:00:35]} 23. Nxc5 {[%clk 0:01:17]}  Bxc5 {[%clk 0:00:35]} 24. Qe6 {[%clk 0:01:17]}  Re8 {[%clk 0:00:25]} 25. h4 {[%clk 0:01:13]}  Qa4 {[%clk 0:00:24]} 26. h5 {[%clk 0:01:09]}  Qd7 {[%clk 0:00:25]} 27. Qb3 {[%clk 0:01:05]}  Rb6 {[%clk 0:00:23]} 28. Nd3 {[%clk 0:01:05]}  Qc6 {[%clk 0:00:23]} 29. Qf7 {[%clk 0:01:03]}  Kd8 {[%clk 0:00:22]} 30. h6 {[%clk 0:01:02]}  Rb8 {[%clk 0:00:21]} 31. h7 {[%clk 0:00:40]}  Rh8 {[%clk 0:00:16]} 32. Qg7 {[%clk 0:00:35]}  Kd7 {[%clk 0:00:16]} 33. Rh6 {[%clk 0:00:32]}  Bd4 {[%clk 0:00:08]} 34. Rxf6 {[%clk 0:00:28]}  Qxe4 {[%clk 0:00:09]} 35. Rf7 {[%clk 0:00:26]}  Rbe8 {[%clk 0:00:08]} 36. Re1 {[%clk 0:00:24]}  Qd5 {[%clk 0:00:03]} 37. Rxe7+ {[%clk 0:00:23]}  Rxe7 {[%clk 0:00:04]} 38. Qxh8 {[%clk 0:00:24]}  Qf7 {[%clk 0:00:04]} 39. Nxb4 {[%clk 0:00:11]}  Qxh7 {[%clk 0:00:04]} 40. Qa8 {[%clk 0:00:11]}  Ke6 {[%clk 0:00:04]} 41. Qd5+ {[%clk 0:00:11]}  Kd7 {[%clk 0:00:05]} 42. Nc6 {[%clk 0:00:05]}  Re8 {[%clk 0:00:05]} 43. Nxd4 {[%clk 0:00:06]}  exd4 {[%clk 0:00:05]} 44. Qb7+ {[%clk 0:00:06]}  Kd8 {[%clk 0:00:05]} 45. Rxe8+ {[%clk 0:00:06]}  Kxe8 {[%clk 0:00:05]} 46. Qxh7 {[%clk 0:00:07]} 1-0


[Site "https://www.chess.com"]

[Event "Titled Tuesday Blitz March 21 Late 2023"]
[White "Papp, Levente"]
[Black "Costachi, Mihnea"]
[WhiteFideId "751243"]
[BlackFideId "1217518"]
[WhiteElo "2380"]
[BlackElo "2456"]
[Result "0-1"]
[Round "03"]
[TimeControl "180+2"]
[Date "2023.03.21"]
[WhiteClock "0:00:02"]
[BlackClock "0:01:31"]

1. b3 {[%clk 0:03:00]}  d5 {[%clk 0:02:59]} 2. Nf3 {[%clk 0:02:59]}  Nf6 {[%clk 0:03:00]} 3. Bb2 {[%clk 0:02:59]}  g6 {[%clk 0:03:01]} 4. g3 {[%clk 0:02:59]}  Bg7 {[%clk 0:03:01]} 5. Bg2 {[%clk 0:03:00]}  O-O {[%clk 0:03:02]} 6. c4 {[%clk 0:03:00]}  c6 {[%clk 0:02:57]} 7. O-O {[%clk 0:03:00]}  Bf5 {[%clk 0:02:55]} 8. Nc3 {[%clk 0:02:47]}  d4 {[%clk 0:02:48]} 9. Na4 {[%clk 0:02:45]}  d3 {[%clk 0:02:47]} 10. Nc5 {[%clk 0:02:25]}  dxe2 {[%clk 0:02:30]} 11. Qxe2 {[%clk 0:02:24]}  Nbd7 {[%clk 0:02:26]} 12. Nxd7 {[%clk 0:02:15]}  Qxd7 {[%clk 0:02:26]} 13. d4 {[%clk 0:02:15]}  Bh3 {[%clk 0:02:23]} 14. Rfe1 {[%clk 0:01:51]}  Bxg2 {[%clk 0:02:22]} 15. Kxg2 {[%clk 0:01:52]}  Rfe8 {[%clk 0:02:23]} 16. Rad1 {[%clk 0:01:50]}  e6 {[%clk 0:02:23]} 17. Ne5 {[%clk 0:01:46]}  Qc7 {[%clk 0:02:22]} 18. f4 {[%clk 0:01:44]}  Rad8 {[%clk 0:02:21]} 19. Qf3 {[%clk 0:01:35]}  Nd7 {[%clk 0:02:18]} 20. a3 {[%clk 0:01:25]}  a5 {[%clk 0:02:16]} 21. b4 {[%clk 0:01:20]}  axb4 {[%clk 0:02:16]} 22. axb4 {[%clk 0:01:20]}  Ra8 {[%clk 0:02:14]} 23. Ra1 {[%clk 0:01:18]}  f6 {[%clk 0:02:07]} 24. Nd3 {[%clk 0:01:17]}  Nb6 {[%clk 0:02:05]} 25. Rxa8 {[%clk 0:01:12]}  Rxa8 {[%clk 0:02:03]} 26. Rxe6 {[%clk 0:01:11]}  Nxc4 {[%clk 0:02:01]} 27. Qe2 {[%clk 0:00:59]}  Qf7 {[%clk 0:01:56]} 28. d5 {[%clk 0:00:28]}  Qd7 {[%clk 0:01:50]} 29. dxc6 {[%clk 0:00:20]}  bxc6 {[%clk 0:01:46]} 30. Nc5 {[%clk 0:00:19]}  Qd5+ {[%clk 0:01:45]} 31. Kh3 {[%clk 0:00:19]}  Nxb2 {[%clk 0:01:33]} 32. Qxb2 {[%clk 0:00:13]}  Ra2 {[%clk 0:01:34]} 33. Qc3 {[%clk 0:00:02]}  Qh5# {[%clk 0:01:31]} 0-1


[Site "https://www.chess.com"]

[Event "Titled Tuesday Blitz March 21 Late 2023"]
[White "Rasulov, Vugar"]
[Black "Koellner, Ruben Gideon"]
[WhiteFideId "13402390"]
[BlackFideId "12993093"]
[WhiteElo "2509"]
[BlackElo "2303"]
[Result "1-0"]
[Round "03"]
[TimeControl "180+2"]
[Date "2023.03.21"]
[WhiteClock "0:01:08"]
[BlackClock "0:00:06"]

1. d4 {[%clk 0:03:00]}  d6 {[%clk 0:03:00]} 2. e4 {[%clk 0:03:00]}  Nf6 {[%clk 0:03:00]} 3. Nc3 {[%clk 0:03:01]}  e5 {[%clk 0:03:01]} 4. dxe5 {[%clk 0:03:00]}  dxe5 {[%clk 0:03:01]} 5. Qxd8+ {[%clk 0:03:00]}  Kxd8 {[%clk 0:03:02]} 6. Bc4 {[%clk 0:03:01]}  Be6 {[%clk 0:03:03]} 7. Bxe6 {[%clk 0:03:00]}  fxe6 {[%clk 0:03:03]} 8. f3 {[%clk 0:02:59]}  Bd6 {[%clk 0:03:04]} 9. Nh3 {[%clk 0:02:58]}  Ke7 {[%clk 0:03:05]} 10. Nf2 {[%clk 0:02:58]}  Nbd7 {[%clk 0:03:06]} 11. Be3 {[%clk 0:02:57]}  a6 {[%clk 0:03:07]} 12. a4 {[%clk 0:02:51]}  c6 {[%clk 0:02:56]} 13. a5 {[%clk 0:02:49]}  Bb4 {[%clk 0:02:50]} 14. Nd3 {[%clk 0:02:48]}  Bxc3+ {[%clk 0:02:40]} 15. bxc3 {[%clk 0:02:46]}  Ne8 {[%clk 0:02:41]} 16. O-O-O {[%clk 0:02:39]}  h6 {[%clk 0:02:40]} 17. Nc5 {[%clk 0:02:36]}  Nef6 {[%clk 0:02:09]} 18. Nxb7 {[%clk 0:02:35]}  Rhb8 {[%clk 0:02:07]} 19. Nc5 {[%clk 0:02:35]}  Rb5 {[%clk 0:02:05]} 20. Nb3 {[%clk 0:02:34]}  Rc8 {[%clk 0:01:59]} 21. c4 {[%clk 0:02:25]}  Rb4 {[%clk 0:01:55]} 22. c5 {[%clk 0:02:25]}  Ne8 {[%clk 0:01:48]} 23. Rd3 {[%clk 0:02:22]}  Rcb8 {[%clk 0:01:48]} 24. Rhd1 {[%clk 0:02:23]}  Ndf6 {[%clk 0:01:48]} 25. g4 {[%clk 0:02:19]}  R4b7 {[%clk 0:01:41]} 26. h4 {[%clk 0:02:17]}  Nd7 {[%clk 0:01:38]} 27. h5 {[%clk 0:02:14]}  Ndf6 {[%clk 0:01:37]} 28. g5 {[%clk 0:01:59]}  Nxh5 {[%clk 0:01:33]} 29. gxh6 {[%clk 0:01:59]}  gxh6 {[%clk 0:01:34]} 30. Bxh6 {[%clk 0:01:58]}  Nf4 {[%clk 0:01:34]} 31. Bg5+ {[%clk 0:01:56]}  Kf7 {[%clk 0:01:34]} 32. Rd7+ {[%clk 0:01:53]}  Kg6 {[%clk 0:01:28]} 33. Rxb7 {[%clk 0:01:41]}  Rxb7 {[%clk 0:01:29]} 34. Bxf4 {[%clk 0:01:42]}  exf4 {[%clk 0:01:29]} 35. Rd8 {[%clk 0:01:42]}  Nc7 {[%clk 0:01:28]} 36. Rd7 {[%clk 0:01:38]}  e5 {[%clk 0:01:00]} 37. Nd2 {[%clk 0:01:34]}  Kf6 {[%clk 0:00:46]} 38. c3 {[%clk 0:01:30]}  Ke6 {[%clk 0:00:39]} 39. Rh7 {[%clk 0:01:30]}  Ra7 {[%clk 0:00:38]} 40. c4 {[%clk 0:01:25]}  Rb7 {[%clk 0:00:31]} 41. Kc2 {[%clk 0:01:25]}  Kf6 {[%clk 0:00:28]} 42. Nb1 {[%clk 0:01:24]}  Kg6 {[%clk 0:00:22]} 43. Rd7 {[%clk 0:01:23]}  Kg5 {[%clk 0:00:20]} 44. Nc3 {[%clk 0:01:18]}  Kh4 {[%clk 0:00:20]} 45. Rg7 {[%clk 0:01:19]}  Kh3 {[%clk 0:00:15]} 46. Nd1 {[%clk 0:01:12]}  Ra7 {[%clk 0:00:08]} 47. Nf2+ {[%clk 0:01:13]}  Kh4 {[%clk 0:00:07]} 48. Nd3 {[%clk 0:01:13]}  Nb5 {[%clk 0:00:06]} 49. Rg4+ {[%clk 0:01:13]}  Kh3 {[%clk 0:00:05]} 50. cxb5 {[%clk 0:01:14]}  axb5 {[%clk 0:00:06]} 51. Nxe5 {[%clk 0:01:13]}  Rxa5 {[%clk 0:00:06]} 52. Rxf4 {[%clk 0:01:10]}  b4 {[%clk 0:00:06]} 53. Nd3 {[%clk 0:01:07]}  Ra2+ {[%clk 0:00:05]} 54. Kb3 {[%clk 0:01:07]}  Ra3+ {[%clk 0:00:06]} 55. Kc4 {[%clk 0:01:08]}  Rc3+ {[%clk 0:00:06]} 56. Kd4 {[%clk 0:01:09]}  Rc2 {[%clk 0:00:06]} 57. Nxb4 {[%clk 0:01:08]} 1-0


[Site "https://www.chess.com"]

[Event "Titled Tuesday Blitz March 21 Late 2023"]
[White "Plat, Vojtech"]
[Black "Zhang, Derek"]
[WhiteFideId "325740"]
[BlackFideId "2087871"]
[WhiteElo "2542"]
[BlackElo "2087"]
[Result "1-0"]
[Round "03"]
[TimeControl "180+2"]
[Date "2023.03.21"]
[WhiteClock "0:00:46"]
[BlackClock "0:00:04"]

1. e4 {[%clk 0:03:00]}  e6 {[%clk 0:02:59]} 2. d4 {[%clk 0:03:00]}  d5 {[%clk 0:02:59]} 3. Nd2 {[%clk 0:03:00]}  Nf6 {[%clk 0:02:59]} 4. e5 {[%clk 0:03:00]}  Nfd7 {[%clk 0:03:00]} 5. Bd3 {[%clk 0:03:01]}  c5 {[%clk 0:03:00]} 6. c3 {[%clk 0:03:01]}  Nc6 {[%clk 0:03:01]} 7. Ne2 {[%clk 0:03:01]}  cxd4 {[%clk 0:03:02]} 8. cxd4 {[%clk 0:03:01]}  f6 {[%clk 0:03:02]} 9. Nf4 {[%clk 0:03:01]}  Nxd4 {[%clk 0:03:01]} 10. Qh5+ {[%clk 0:03:00]}  Ke7 {[%clk 0:03:01]} 11. Ng6+ {[%clk 0:03:00]}  hxg6 {[%clk 0:03:02]} 12. exf6+ {[%clk 0:03:00]}  Nxf6 {[%clk 0:03:03]} 13. Qxh8 {[%clk 0:03:00]}  Kf7 {[%clk 0:03:03]} 14. Qh4 {[%clk 0:02:59]}  e5 {[%clk 0:03:03]} 15. Nf3 {[%clk 0:02:59]}  Nxf3+ {[%clk 0:03:04]} 16. gxf3 {[%clk 0:02:59]}  Bf5 {[%clk 0:03:05]} 17. Bxf5 {[%clk 0:02:59]}  gxf5 {[%clk 0:03:05]} 18. O-O {[%clk 0:02:58]}  Bc5 {[%clk 0:03:01]} 19. Bg5 {[%clk 0:02:57]}  Qd6 {[%clk 0:02:52]} 20. Rac1 {[%clk 0:02:55]}  Bb6 {[%clk 0:02:52]} 21. Rfd1 {[%clk 0:02:53]}  Rd8 {[%clk 0:02:13]} 22. Kg2 {[%clk 0:02:39]}  d4 {[%clk 0:02:02]} 23. Qg3 {[%clk 0:02:14]}  Re8 {[%clk 0:01:51]} 24. Re1 {[%clk 0:02:02]}  Qd5 {[%clk 0:01:42]} 25. Qh4 {[%clk 0:01:53]}  Qd7 {[%clk 0:01:27]} 26. Kh1 {[%clk 0:01:33]}  Qd5 {[%clk 0:01:23]} 27. Kg2 {[%clk 0:01:33]}  Qd7 {[%clk 0:01:22]} 28. Rc2 {[%clk 0:01:15]}  Ba5 {[%clk 0:00:24]} 29. b4 {[%clk 0:00:58]}  Bb6 {[%clk 0:00:20]} 30. Rce2 {[%clk 0:00:56]}  Qd5 {[%clk 0:00:16]} 31. Bxf6 {[%clk 0:00:53]}  gxf6 {[%clk 0:00:17]} 32. Qh5+ {[%clk 0:00:53]}  Ke7 {[%clk 0:00:18]} 33. Qxf5 {[%clk 0:00:52]}  Rg8+ {[%clk 0:00:16]} 34. Kh1 {[%clk 0:00:52]}  Rg5 {[%clk 0:00:12]} 35. Rxe5+ {[%clk 0:00:51]}  fxe5 {[%clk 0:00:07]} 36. Qxg5+ {[%clk 0:00:51]}  Kd6 {[%clk 0:00:08]} 37. Qf6+ {[%clk 0:00:49]}  Kc7 {[%clk 0:00:08]} 38. Rxe5 {[%clk 0:00:49]}  Qxa2 {[%clk 0:00:07]} 39. Re7+ {[%clk 0:00:47]}  Kc8 {[%clk 0:00:07]} 40. Qf5+ {[%clk 0:00:46]}  Kb8 {[%clk 0:00:06]} 41. Qf8+ {[%clk 0:00:46]}  Bd8 {[%clk 0:00:04]} 42. Qxd8# {[%clk 0:00:46]} 1-0


[Site "https://www.chess.com"]

[Event "Titled Tuesday Blitz March 21 Late 2023"]
[White "Zakhartsov, Vladimir"]
[Black "Luo, Terry"]
[WhiteFideId "4145097"]
[BlackFideId "30931045"]
[WhiteElo "2521"]
[BlackElo "2265"]
[Result "1-0"]
[Round "03"]
[TimeControl "180+2"]
[Date "2023.03.21"]
[WhiteClock "0:01:21"]
[BlackClock "0:00:59"]

1. e4 {[%clk 0:02:59]}  e5 {[%clk 0:02:59]} 2. Nf3 {[%clk 0:02:58]}  Nc6 {[%clk 0:02:59]} 3. Nc3 {[%clk 0:02:58]}  Nf6 {[%clk 0:02:59]} 4. a3 {[%clk 0:02:59]}  d5 {[%clk 0:02:57]} 5. Bb5 {[%clk 0:02:58]}  d4 {[%clk 0:02:46]} 6. Ne2 {[%clk 0:02:57]}  Bd6 {[%clk 0:02:46]} 7. d3 {[%clk 0:02:57]}  O-O {[%clk 0:02:44]} 8. Bxc6 {[%clk 0:02:57]}  bxc6 {[%clk 0:02:43]} 9. O-O {[%clk 0:02:58]}  c5 {[%clk 0:02:40]} 10. Nd2 {[%clk 0:02:57]}  Be6 {[%clk 0:02:38]} 11. b3 {[%clk 0:02:56]}  Nd7 {[%clk 0:02:36]} 12. Ng3 {[%clk 0:02:54]}  g6 {[%clk 0:02:31]} 13. Nc4 {[%clk 0:02:50]}  Kg7 {[%clk 0:02:31]} 14. Nxd6 {[%clk 0:02:21]}  cxd6 {[%clk 0:02:31]} 15. f4 {[%clk 0:02:21]}  exf4 {[%clk 0:02:24]} 16. Bxf4 {[%clk 0:02:20]}  Ne5 {[%clk 0:02:25]} 17. Qd2 {[%clk 0:02:17]}  Ng4 {[%clk 0:01:48]} 18. h3 {[%clk 0:02:16]}  Ne3 {[%clk 0:01:48]} 19. Bxe3 {[%clk 0:02:16]}  dxe3 {[%clk 0:01:49]} 20. Qxe3 {[%clk 0:02:17]}  a5 {[%clk 0:01:46]} 21. a4 {[%clk 0:02:16]}  Qh4 {[%clk 0:01:45]} 22. Rf4 {[%clk 0:02:14]}  Qe7 {[%clk 0:01:44]} 23. Raf1 {[%clk 0:02:12]}  f6 {[%clk 0:01:45]} 24. R4f2 {[%clk 0:02:03]}  h5 {[%clk 0:01:45]} 25. Ne2 {[%clk 0:02:02]}  Bg8 {[%clk 0:01:39]} 26. Qd2 {[%clk 0:02:00]}  Qe5 {[%clk 0:01:38]} 27. Nf4 {[%clk 0:01:55]}  h4 {[%clk 0:01:36]} 28. Rf3 {[%clk 0:01:51]}  Ra7 {[%clk 0:01:26]} 29. Qf2 {[%clk 0:01:48]}  Bf7 {[%clk 0:01:02]} 30. Ne2 {[%clk 0:01:29]}  Be6 {[%clk 0:00:59]} 31. Qxh4 {[%clk 0:01:28]}  g5 {[%clk 0:00:59]} 32. Qf2 {[%clk 0:01:26]}  d5 {[%clk 0:01:00]} 33. Ng3 {[%clk 0:01:24]}  dxe4 {[%clk 0:00:59]} 34. Nxe4 {[%clk 0:01:21]} 1-0


[Site "https://www.chess.com"]

[Event "Titled Tuesday Blitz March 21 Late 2023"]
[White "Remolar Gallen, Jose"]
[Black "Van Foreest, Lucas"]
[WhiteFideId "2215187"]
[BlackFideId "1039792"]
[WhiteElo "2223"]
[BlackElo "2519"]
[Result "0-1"]
[Round "03"]
[TimeControl "180+2"]
[Date "2023.03.21"]
[WhiteClock "0:00:55"]
[BlackClock "0:02:35"]

1. d4 {[%clk 0:03:00]}  g5 {[%clk 0:02:58]} 2. Bxg5 {[%clk 0:02:56]}  Bg7 {[%clk 0:02:58]} 3. Nf3 {[%clk 0:02:55]}  c5 {[%clk 0:02:58]} 4. Nc3 {[%clk 0:02:46]}  Qb6 {[%clk 0:02:57]} 5. dxc5 {[%clk 0:02:06]}  Qxb2 {[%clk 0:02:55]} 6. Na4 {[%clk 0:02:04]}  Qxa1 {[%clk 0:02:55]} 7. Qxa1 {[%clk 0:01:56]}  Bxa1 {[%clk 0:02:54]} 8. c3 {[%clk 0:01:56]}  d6 {[%clk 0:02:49]} 9. cxd6 {[%clk 0:01:28]}  Bd7 {[%clk 0:02:48]} 10. Nc5 {[%clk 0:01:26]}  Bxc3+ {[%clk 0:02:47]} 11. Kd1 {[%clk 0:01:25]}  b6 {[%clk 0:02:44]} 12. Ne4 {[%clk 0:01:19]}  Bb4 {[%clk 0:02:39]} 13. dxe7 {[%clk 0:00:58]}  Nc6 {[%clk 0:02:37]} 14. e3 {[%clk 0:00:55]}  Bxe7 {[%clk 0:02:36]} 15. Bf4 {[%clk 0:00:55]}  Nf6 {[%clk 0:02:35]} 0-1


[Site "https://www.chess.com"]

[Event "Titled Tuesday Blitz March 21 Late 2023"]
[White "Ashraf, Artin"]
[Black "victormago"]
[WhiteFideId "22514805"]
[WhiteElo "2188"]
[BlackElo "2385"]
[Result "1-0"]
[Round "03"]
[TimeControl "180+2"]
[Date "2023.03.21"]
[WhiteClock "0:00:44"]
[BlackClock "0:00:25"]

1. e3 {[%clk 0:02:58]}  Nf6 {[%clk 0:02:57]} 2. d4 {[%clk 0:02:58]}  g6 {[%clk 0:02:55]} 3. c4 {[%clk 0:02:58]}  Bg7 {[%clk 0:02:55]} 4. Nf3 {[%clk 0:02:58]}  c5 {[%clk 0:02:55]} 5. d5 {[%clk 0:02:58]}  O-O {[%clk 0:02:52]} 6. Nc3 {[%clk 0:02:58]}  d6 {[%clk 0:02:52]} 7. h3 {[%clk 0:02:57]}  e6 {[%clk 0:02:52]} 8. Bd3 {[%clk 0:02:57]}  exd5 {[%clk 0:02:52]} 9. cxd5 {[%clk 0:02:58]}  a6 {[%clk 0:02:47]} 10. a4 {[%clk 0:02:56]}  Nbd7 {[%clk 0:02:47]} 11. O-O {[%clk 0:02:53]}  Re8 {[%clk 0:02:47]} 12. e4 {[%clk 0:02:52]}  Ne5 {[%clk 0:02:43]} 13. Nxe5 {[%clk 0:02:51]}  Rxe5 {[%clk 0:02:44]} 14. Bf4 {[%clk 0:02:52]}  Re8 {[%clk 0:02:44]} 15. Re1 {[%clk 0:02:42]}  Nd7 {[%clk 0:02:37]} 16. Qd2 {[%clk 0:02:16]}  Ne5 {[%clk 0:02:36]} 17. Bf1 {[%clk 0:02:15]}  f5 {[%clk 0:02:25]} 18. Bh6 {[%clk 0:01:35]}  Bd7 {[%clk 0:02:18]} 19. Bxg7 {[%clk 0:01:32]}  Kxg7 {[%clk 0:02:17]} 20. f4 {[%clk 0:01:32]}  Nf7 {[%clk 0:02:14]} 21. Re3 {[%clk 0:01:30]}  fxe4 {[%clk 0:02:09]} 22. Nxe4 {[%clk 0:01:30]}  Bf5 {[%clk 0:02:09]} 23. Qc3+ {[%clk 0:01:29]}  Kf8 {[%clk 0:02:03]} 24. Rae1 {[%clk 0:01:20]}  Bxe4 {[%clk 0:02:01]} 25. Rxe4 {[%clk 0:01:20]}  Rxe4 {[%clk 0:02:01]} 26. Rxe4 {[%clk 0:01:20]}  Qd7 {[%clk 0:01:52]} 27. Be2 {[%clk 0:01:17]}  Re8 {[%clk 0:01:47]} 28. Bg4 {[%clk 0:01:16]}  Qd8 {[%clk 0:01:43]} 29. Be6 {[%clk 0:01:15]}  b5 {[%clk 0:01:29]} 30. axb5 {[%clk 0:00:58]}  axb5 {[%clk 0:01:30]} 31. b4 {[%clk 0:00:59]}  c4 {[%clk 0:01:26]} 32. f5 {[%clk 0:00:57]}  gxf5 {[%clk 0:01:22]} 33. Rf4 {[%clk 0:00:56]}  Ne5 {[%clk 0:00:36]} 34. Rxf5+ {[%clk 0:00:53]}  Ke7 {[%clk 0:00:35]} 35. Qe3 {[%clk 0:00:46]}  h6 {[%clk 0:00:25]} 36. Qa7+ {[%clk 0:00:44]} 1-0


[Site "https://www.chess.com"]